[Event "Titled Tuesday Blitz June 6 Early 2023"]
[White "Martin, Lewis"]
[Black "Dushyant Sharma"]
[WhiteFideId "410551"]
[BlackFideId "25065130"]
[WhiteElo "2145"]
[BlackElo "2198"]
[Result "0-1"]
[Round "5"]
[TimeControl "180+2"]
[Date "2023.06.06"]
[WhiteClock "0:01:05"]
[BlackClock "0:01:30"]
[Board "154"]

1. e4 {[%clk 0:03:00]}  d5 {[%clk 0:03:00]} 2. exd5 {[%clk 0:03:00]}  Nf6 {[%clk 0:03:00]} 3. Bb5+ {[%clk 0:02:57]}  c6 {[%clk 0:02:59]} 4. dxc6 {[%clk 0:02:55]}  Nxc6 {[%clk 0:03:00]} 5. Nf3 {[%clk 0:02:54]}  Bg4 {[%clk 0:03:00]} 6. Bxc6+ {[%clk 0:02:51]}  bxc6 {[%clk 0:03:00]} 7. d3 {[%clk 0:02:51]}  e6 {[%clk 0:03:00]} 8. Be3 {[%clk 0:02:44]}  Rb8 {[%clk 0:02:56]} 9. b3 {[%clk 0:02:44]}  Nd5 {[%clk 0:02:54]} 10. O-O {[%clk 0:02:39]}  Qf6 {[%clk 0:02:46]} 11. Nbd2 {[%clk 0:02:28]}  Bb4 {[%clk 0:02:36]} 12. c4 {[%clk 0:02:16]}  Nxe3 {[%clk 0:02:33]} 13. fxe3 {[%clk 0:02:16]}  Bxd2 {[%clk 0:02:33]} 14. Qxd2 {[%clk 0:02:12]}  Bxf3 {[%clk 0:02:33]} 15. gxf3 {[%clk 0:02:11]}  O-O {[%clk 0:02:31]} 16. d4 {[%clk 0:02:02]}  Rfd8 {[%clk 0:02:30]} 17. Rad1 {[%clk 0:02:01]}  c5 {[%clk 0:02:27]} 18. d5 {[%clk 0:02:00]}  Rd6 {[%clk 0:02:12]} 19. e4 {[%clk 0:01:53]}  Rbd8 {[%clk 0:02:12]} 20. Qf2 {[%clk 0:01:48]}  h6 {[%clk 0:02:08]} 21. Qxc5 {[%clk 0:01:46]}  exd5 {[%clk 0:02:00]} 22. Rxd5 {[%clk 0:01:42]}  Re6 {[%clk 0:01:42]} 23. Rxd8+ {[%clk 0:01:37]}  Qxd8 {[%clk 0:01:43]} 24. Qe3 {[%clk 0:01:28]}  Qa5 {[%clk 0:01:38]} 25. Rf2 {[%clk 0:01:26]}  Rg6+ {[%clk 0:01:36]} 26. Kf1 {[%clk 0:01:19]}  Qe5 {[%clk 0:01:36]} 27. f4 {[%clk 0:01:12]}  Qa1+ {[%clk 0:01:33]} 28. Qe1 {[%clk 0:01:12]}  Rg1+ {[%clk 0:01:33]} 29. Kxg1 {[%clk 0:01:11]}  Qxe1+ {[%clk 0:01:34]} 30. Kg2 {[%clk 0:01:11]}  Qxe4+ {[%clk 0:01:34]} 31. Kg3 {[%clk 0:01:12]}  f5 {[%clk 0:01:32]} 32. Rf3 {[%clk 0:01:06]}  g5 {[%clk 0:01:29]} 33. fxg5 {[%clk 0:01:05]}  hxg5 {[%clk 0:01:30]} 34. Rf2 {[%clk 0:01:05]}  Qg4# {[%clk 0:01:30]} 0-1


[Site "https://www.chess.com"]

[Event "Titled Tuesday Blitz June 6 Early 2023"]
[White "Levitan, Caleb Levi"]
[Black "Khromkin, Andrey"]
[WhiteFideId "14332620"]
[BlackFideId "4154126"]
[WhiteElo "1963"]
[BlackElo "2453"]
[Result "1/2-1/2"]
[Round "5"]
[TimeControl "180+2"]
[Date "2023.06.06"]
[WhiteClock "0:00:05"]
[BlackClock "0:00:59"]
[Board "155"]

1. e4 {[%clk 0:03:00]}  c5 {[%clk 0:02:58]} 2. Nf3 {[%clk 0:03:01]}  Nc6 {[%clk 0:02:59]} 3. Nc3 {[%clk 0:02:59]}  g6 {[%clk 0:02:58]} 4. d4 {[%clk 0:02:51]}  cxd4 {[%clk 0:02:58]} 5. Nxd4 {[%clk 0:02:52]}  Bg7 {[%clk 0:02:58]} 6. Be3 {[%clk 0:02:50]}  Nf6 {[%clk 0:02:58]} 7. Be2 {[%clk 0:02:45]}  O-O {[%clk 0:02:57]} 8. O-O {[%clk 0:02:39]}  d5 {[%clk 0:02:57]} 9. exd5 {[%clk 0:02:09]}  Nxd5 {[%clk 0:02:55]} 10. Nxd5 {[%clk 0:02:09]}  Nxd4 {[%clk 0:02:55]} 11. Bxd4 {[%clk 0:01:58]}  Qxd5 {[%clk 0:02:54]} 12. Bxg7 {[%clk 0:01:57]}  Qxd1 {[%clk 0:02:54]} 13. Raxd1 {[%clk 0:01:55]}  Kxg7 {[%clk 0:02:55]} 14. Bf3 {[%clk 0:01:55]}  Bf5 {[%clk 0:02:55]} 15. c3 {[%clk 0:01:51]}  Rac8 {[%clk 0:02:55]} 16. Rfe1 {[%clk 0:01:50]}  Kf6 {[%clk 0:02:49]} 17. Rd2 {[%clk 0:01:42]}  Rc7 {[%clk 0:02:48]} 18. Red1 {[%clk 0:01:39]}  e5 {[%clk 0:02:45]} 19. g3 {[%clk 0:01:21]}  Ke7 {[%clk 0:02:39]} 20. Re1 {[%clk 0:01:15]}  f6 {[%clk 0:02:39]} 21. Bg2 {[%clk 0:01:12]}  Rd8 {[%clk 0:02:34]} 22. Rxd8 {[%clk 0:01:07]}  Kxd8 {[%clk 0:02:34]} 23. Rd1+ {[%clk 0:01:06]}  Ke7 {[%clk 0:02:35]} 24. Kf1 {[%clk 0:01:04]}  Be6 {[%clk 0:02:35]} 25. a3 {[%clk 0:01:02]}  Bb3 {[%clk 0:02:30]} 26. Rd2 {[%clk 0:01:00]}  f5 {[%clk 0:02:31]} 27. Ke1 {[%clk 0:00:56]}  a5 {[%clk 0:02:29]} 28. Bd5 {[%clk 0:00:55]}  Ba4 {[%clk 0:02:17]} 29. Bg8 {[%clk 0:00:46]}  h6 {[%clk 0:02:09]} 30. Rd5 {[%clk 0:00:41]}  Bb3 {[%clk 0:01:46]} 31. Rxe5+ {[%clk 0:00:31]}  Kf6 {[%clk 0:01:42]} 32. Re8 {[%clk 0:00:27]}  Bxg8 {[%clk 0:01:41]} 33. Rxg8 {[%clk 0:00:27]}  Re7+ {[%clk 0:01:39]} 34. Kf1 {[%clk 0:00:26]}  Rd7 {[%clk 0:01:39]} 35. Ra8 {[%clk 0:00:23]}  Rd2 {[%clk 0:01:36]} 36. Rxa5 {[%clk 0:00:21]}  Rxb2 {[%clk 0:01:37]} 37. c4 {[%clk 0:00:21]}  g5 {[%clk 0:01:28]} 38. Rb5 {[%clk 0:00:20]}  Rc2 {[%clk 0:01:22]} 39. Rb6+ {[%clk 0:00:14]}  Ke5 {[%clk 0:01:16]} 40. Rxb7 {[%clk 0:00:14]}  Rxc4 {[%clk 0:01:16]} 41. Rh7 {[%clk 0:00:15]}  Ra4 {[%clk 0:01:14]} 42. Rxh6 {[%clk 0:00:14]}  Rxa3 {[%clk 0:01:14]} 43. Rg6 {[%clk 0:00:14]}  g4 {[%clk 0:01:14]} 44. Kg2 {[%clk 0:00:15]}  Ra2 {[%clk 0:01:13]} 45. Rb6 {[%clk 0:00:13]}  Rc2 {[%clk 0:01:12]} 46. Ra6 {[%clk 0:00:12]}  Rb2 {[%clk 0:01:11]} 47. Ra5+ {[%clk 0:00:11]}  Kf6 {[%clk 0:01:10]} 48. Ra6+ {[%clk 0:00:11]}  Kg5 {[%clk 0:01:10]} 49. Ra8 {[%clk 0:00:11]}  Rc2 {[%clk 0:01:11]} 50. Rg8+ {[%clk 0:00:10]}  Kf6 {[%clk 0:01:11]} 51. Re8 {[%clk 0:00:11]}  Kg5 {[%clk 0:01:11]} 52. Kf1 {[%clk 0:00:09]}  Rb2 {[%clk 0:01:08]} 53. Re2 {[%clk 0:00:09]}  Rb1+ {[%clk 0:01:08]} 54. Kg2 {[%clk 0:00:09]}  Rb3 {[%clk 0:01:07]} 55. h4+ {[%clk 0:00:08]}  gxh3+ {[%clk 0:01:07]} 56. Kxh3 {[%clk 0:00:08]}  f4 {[%clk 0:01:06]} 57. Re5+ {[%clk 0:00:04]}  Kf6 {[%clk 0:01:06]} 58. Re4 {[%clk 0:00:04]}  fxg3 {[%clk 0:01:05]} 59. fxg3 {[%clk 0:00:05]}  Kg6 {[%clk 0:01:05]} 60. Re6+ {[%clk 0:00:05]}  Kg7 {[%clk 0:01:04]} 61. Kh4 {[%clk 0:00:04]}  Kg8 {[%clk 0:01:03]} 62. Ra6 {[%clk 0:00:04]}  Rb8 {[%clk 0:01:03]} 63. Ra7 {[%clk 0:00:05]}  Rc8 {[%clk 0:01:03]} 64. g4 {[%clk 0:00:05]}  Rb8 {[%clk 0:01:03]} 65. g5 {[%clk 0:00:06]}  Rc8 {[%clk 0:01:03]} 66. Kh5 {[%clk 0:00:06]}  Rb8 {[%clk 0:01:04]} 67. Kh6 {[%clk 0:00:07]}  Rc8 {[%clk 0:01:04]} 68. Rg7+ {[%clk 0:00:06]}  Kh8 {[%clk 0:01:03]} 69. Re7 {[%clk 0:00:06]}  Kg8 {[%clk 0:01:02]} 70. g6 {[%clk 0:00:06]}  Rb8 {[%clk 0:01:02]} 71. Rg7+ {[%clk 0:00:06]}  Kh8 {[%clk 0:01:01]} 72. Rf7 {[%clk 0:00:05]}  Kg8 {[%clk 0:01:00]} 73. Rd7 {[%clk 0:00:05]}  Rc8 {[%clk 0:01:00]} 74. Rg7+ {[%clk 0:00:05]}  Kh8 {[%clk 0:00:59]} 75. Rh7+ {[%clk 0:00:05]}  Kg8 {[%clk 0:00:59]} 76. Rg7+ {[%clk 0:00:05]}  Kh8 {[%clk 0:00:59]} 77. Rh7+ {[%clk 0:00:05]}  Kg8 {[%clk 0:00:59]} 78. Rg7+ {[%clk 0:00:05]} 1/2-1/2


[Site "https://www.chess.com"]

[Event "Titled Tuesday Blitz June 6 Early 2023"]
[White "Sanhueza, Cristian"]
[Black "agvania123"]
[WhiteFideId "116815"]
[WhiteElo "2174"]
[BlackElo "2241"]
[Result "1-0"]
[Round "5"]
[TimeControl "180+2"]
[Date "2023.06.06"]
[WhiteClock "0:01:10"]
[BlackClock "0:00:35"]
[Board "156"]

1. e4 {[%clk 0:03:00]}  d5 {[%clk 0:02:58]} 2. exd5 {[%clk 0:03:00]}  Qxd5 {[%clk 0:02:59]} 3. Nc3 {[%clk 0:03:00]}  Qd8 {[%clk 0:02:58]} 4. d4 {[%clk 0:03:01]}  Nf6 {[%clk 0:02:57]} 5. Nf3 {[%clk 0:03:01]}  g6 {[%clk 0:02:57]} 6. Ne5 {[%clk 0:03:01]}  Bg7 {[%clk 0:02:55]} 7. Bc4 {[%clk 0:03:01]}  e6 {[%clk 0:02:55]} 8. Bg5 {[%clk 0:03:00]}  h6 {[%clk 0:02:51]} 9. Bh4 {[%clk 0:02:57]}  O-O {[%clk 0:02:46]} 10. O-O {[%clk 0:02:50]}  Nbd7 {[%clk 0:02:43]} 11. Qf3 {[%clk 0:02:47]}  c6 {[%clk 0:02:27]} 12. Rad1 {[%clk 0:02:42]}  Qc7 {[%clk 0:02:03]} 13. Bg3 {[%clk 0:02:25]}  Nxe5 {[%clk 0:02:00]} 14. Bxe5 {[%clk 0:02:23]}  Qe7 {[%clk 0:01:59]} 15. Rfe1 {[%clk 0:02:23]}  Bd7 {[%clk 0:01:54]} 16. Ne4 {[%clk 0:01:54]}  Nxe4 {[%clk 0:01:53]} 17. Qxe4 {[%clk 0:01:55]}  Rad8 {[%clk 0:01:46]} 18. Qf4 {[%clk 0:01:52]}  Bc8 {[%clk 0:01:36]} 19. c3 {[%clk 0:01:46]}  b6 {[%clk 0:01:24]} 20. h4 {[%clk 0:01:46]}  f6 {[%clk 0:01:19]} 21. Bc7 {[%clk 0:01:37]}  Rde8 {[%clk 0:01:03]} 22. Bd6 {[%clk 0:01:36]}  Qd7 {[%clk 0:00:46]} 23. Bxf8 {[%clk 0:01:33]}  Kxf8 {[%clk 0:00:43]} 24. Re3 {[%clk 0:01:27]}  b5 {[%clk 0:00:43]} 25. Bb3 {[%clk 0:01:26]}  a5 {[%clk 0:00:44]} 26. Rde1 {[%clk 0:01:26]}  a4 {[%clk 0:00:43]} 27. Bxe6 {[%clk 0:01:24]}  Rxe6 {[%clk 0:00:43]} 28. Rxe6 {[%clk 0:01:24]}  Qxe6 {[%clk 0:00:43]} 29. Rxe6 {[%clk 0:01:24]}  Bxe6 {[%clk 0:00:44]} 30. Qd6+ {[%clk 0:01:21]}  Kf7 {[%clk 0:00:44]} 31. Qxc6 {[%clk 0:01:22]}  Bxa2 {[%clk 0:00:45]} 32. d5 {[%clk 0:01:19]}  Bf8 {[%clk 0:00:43]} 33. Qd7+ {[%clk 0:01:17]}  Kg8 {[%clk 0:00:41]} 34. Qxb5 {[%clk 0:01:13]}  Be7 {[%clk 0:00:35]} 35. Qb8+ {[%clk 0:01:10]}  Kf7 {[%clk 0:00:35]} 36. d6 {[%clk 0:01:11]}  Bf8 {[%clk 0:00:35]} 37. d7 {[%clk 0:01:10]} 1-0


[Site "https://www.chess.com"]

[Event "Titled Tuesday Blitz June 6 Early 2023"]
[White "Clawitter, Craig"]
[Black "Marcziter, Dmitrii"]
[WhiteFideId "2023105"]
[BlackFideId "13900765"]
[WhiteElo "2230"]
[BlackElo "2162"]
[Result "0-1"]
[Round "5"]
[TimeControl "180+2"]
[Date "2023.06.06"]
[WhiteClock "0:00:09"]
[BlackClock "0:01:06"]
[Board "158"]

1. e4 {[%clk 0:03:00]}  c5 {[%clk 0:02:58]} 2. Nf3 {[%clk 0:03:00]}  a6 {[%clk 0:02:58]} 3. c3 {[%clk 0:02:59]}  d5 {[%clk 0:02:53]} 4. exd5 {[%clk 0:02:59]}  Qxd5 {[%clk 0:02:53]} 5. d4 {[%clk 0:03:00]}  Nf6 {[%clk 0:02:53]} 6. Be2 {[%clk 0:02:59]}  Bg4 {[%clk 0:02:53]} 7. O-O {[%clk 0:02:58]}  e6 {[%clk 0:02:53]} 8. Be3 {[%clk 0:02:57]}  cxd4 {[%clk 0:02:54]} 9. cxd4 {[%clk 0:02:57]}  Nc6 {[%clk 0:02:54]} 10. Nc3 {[%clk 0:02:57]}  Qd6 {[%clk 0:02:54]} 11. Rc1 {[%clk 0:02:44]}  Be7 {[%clk 0:02:53]} 12. Na4 {[%clk 0:01:56]}  O-O {[%clk 0:02:38]} 13. Nc5 {[%clk 0:01:46]}  Ra7 {[%clk 0:02:22]} 14. Ne5 {[%clk 0:01:36]}  Bxe2 {[%clk 0:02:20]} 15. Qxe2 {[%clk 0:01:35]}  Nxd4 {[%clk 0:02:16]} 16. Bxd4 {[%clk 0:01:31]}  Qxd4 {[%clk 0:02:16]} 17. Rfd1 {[%clk 0:01:31]}  Qb4 {[%clk 0:02:07]} 18. Ncd7 {[%clk 0:01:20]}  Re8 {[%clk 0:02:01]} 19. a3 {[%clk 0:01:03]}  Qb5 {[%clk 0:01:43]} 20. Qe3 {[%clk 0:00:39]}  Raa8 {[%clk 0:01:40]} 21. b4 {[%clk 0:00:17]}  Rac8 {[%clk 0:01:33]} 22. Nb6 {[%clk 0:00:10]}  Rxc1 {[%clk 0:01:29]} 23. Rxc1 {[%clk 0:00:11]}  h6 {[%clk 0:01:24]} 24. h3 {[%clk 0:00:11]}  Nd5 {[%clk 0:01:09]} 25. Qd4 {[%clk 0:00:09]}  Qxb6 {[%clk 0:01:06]} 0-1


[Site "https://www.chess.com"]

[Event "Titled Tuesday Blitz June 6 Early 2023"]
[White "Gatterer, Florian"]
[Black "Larina, Maria"]
[WhiteFideId "811688"]
[BlackFideId "24113182"]
[WhiteElo "2221"]
[BlackElo "1848"]
[Result "1-0"]
[Round "5"]
[TimeControl "180+2"]
[Date "2023.06.06"]
[WhiteClock "0:00:55"]
[BlackClock "0:00:29"]
[Board "161"]

1. e4 {[%clk 0:03:00]}  c6 {[%clk 0:02:59]} 2. d4 {[%clk 0:02:57]}  d5 {[%clk 0:03:00]} 3. e5 {[%clk 0:02:58]}  Bf5 {[%clk 0:03:00]} 4. Nf3 {[%clk 0:02:58]}  e6 {[%clk 0:03:00]} 5. c3 {[%clk 0:02:59]}  Ne7 {[%clk 0:02:56]} 6. Be3 {[%clk 0:02:49]}  Nd7 {[%clk 0:02:56]} 7. a4 {[%clk 0:02:49]}  a5 {[%clk 0:02:49]} 8. Nbd2 {[%clk 0:02:45]}  h6 {[%clk 0:02:47]} 9. Be2 {[%clk 0:02:43]}  Nc8 {[%clk 0:02:42]} 10. O-O {[%clk 0:02:43]}  Ncb6 {[%clk 0:02:38]} 11. Ne1 {[%clk 0:02:42]}  Be7 {[%clk 0:02:36]} 12. Bd3 {[%clk 0:02:41]}  Bxd3 {[%clk 0:02:35]} 13. Nxd3 {[%clk 0:02:42]}  O-O {[%clk 0:02:35]} 14. f4 {[%clk 0:02:42]}  Nc4 {[%clk 0:02:15]} 15. Bf2 {[%clk 0:02:20]}  Nxd2 {[%clk 0:01:54]} 16. Qxd2 {[%clk 0:02:19]}  Nb6 {[%clk 0:01:55]} 17. b3 {[%clk 0:02:15]}  f5 {[%clk 0:01:48]} 18. exf6 {[%clk 0:02:11]}  Bxf6 {[%clk 0:01:43]} 19. Rae1 {[%clk 0:02:11]}  Re8 {[%clk 0:01:39]} 20. Nc5 {[%clk 0:02:02]}  Qc8 {[%clk 0:01:35]} 21. g4 {[%clk 0:02:01]}  Kh7 {[%clk 0:01:13]} 22. g5 {[%clk 0:02:00]}  Bd8 {[%clk 0:01:08]} 23. gxh6 {[%clk 0:01:46]}  gxh6 {[%clk 0:01:09]} 24. Qd3+ {[%clk 0:01:44]}  Kh8 {[%clk 0:01:09]} 25. Kh1 {[%clk 0:01:41]}  Bf6 {[%clk 0:00:59]} 26. Qg6 {[%clk 0:01:33]}  Bg7 {[%clk 0:00:53]} 27. Rxe6 {[%clk 0:01:33]}  Nd7 {[%clk 0:00:44]} 28. Rxe8+ {[%clk 0:01:26]}  Qxe8 {[%clk 0:00:45]} 29. Qxe8+ {[%clk 0:01:26]}  Rxe8 {[%clk 0:00:45]} 30. Nxd7 {[%clk 0:01:26]}  Re2 {[%clk 0:00:46]} 31. Be1 {[%clk 0:01:09]}  Rb2 {[%clk 0:00:45]} 32. f5 {[%clk 0:01:10]}  Kg8 {[%clk 0:00:30]} 33. f6 {[%clk 0:01:09]}  Bf8 {[%clk 0:00:30]} 34. f7+ {[%clk 0:01:05]}  Kg7 {[%clk 0:00:29]} 35. Nxf8 {[%clk 0:00:59]}  Kxf8 {[%clk 0:00:29]} 36. Bg3 {[%clk 0:00:57]}  Rxb3 {[%clk 0:00:27]} 37. Bd6+ {[%clk 0:00:57]}  Kg7 {[%clk 0:00:28]} 38. f8=Q+ {[%clk 0:00:56]}  Kg6 {[%clk 0:00:29]} 39. Qf5+ {[%clk 0:00:56]}  Kg7 {[%clk 0:00:29]} 40. Qf7+ {[%clk 0:00:55]}  Kh8 {[%clk 0:00:29]} 41. Be5# {[%clk 0:00:55]} 1-0


[Site "https://www.chess.com"]

[Event "Titled Tuesday Blitz June 6 Early 2023"]
[White "Cramling Bellon, Anna"]
[Black "Tarasova, Viktoriya"]
[WhiteFideId "32009232"]
[BlackFideId "4175840"]
[WhiteElo "1976"]
[BlackElo "2182"]
[Result "0-1"]
[Round "5"]
[TimeControl "180+2"]
[Date "2023.06.06"]
[WhiteClock "0:00:01"]
[BlackClock "0:00:15"]
[Board "164"]

1. d4 {[%clk 0:02:57]}  Nf6 {[%clk 0:03:00]} 2. c4 {[%clk 0:02:55]}  e6 {[%clk 0:03:00]} 3. Nc3 {[%clk 0:02:52]}  Bb4 {[%clk 0:02:59]} 4. Qc2 {[%clk 0:02:51]}  O-O {[%clk 0:02:58]} 5. e4 {[%clk 0:02:51]}  d5 {[%clk 0:02:57]} 6. cxd5 {[%clk 0:02:52]}  exd5 {[%clk 0:02:57]} 7. e5 {[%clk 0:02:53]}  Ne4 {[%clk 0:02:58]} 8. Bd3 {[%clk 0:02:49]}  c5 {[%clk 0:02:58]} 9. Nf3 {[%clk 0:02:47]}  Bg4 {[%clk 0:02:50]} 10. O-O {[%clk 0:02:41]}  Nc6 {[%clk 0:02:36]} 11. Nxd5 {[%clk 0:02:26]}  Bxf3 {[%clk 0:02:25]} 12. gxf3 {[%clk 0:00:54]}  Nxd4 {[%clk 0:02:24]} 13. Qd1 {[%clk 0:00:53]}  Ng5 {[%clk 0:01:43]} 14. Bxg5 {[%clk 0:00:45]}  Qxg5+ {[%clk 0:01:42]} 15. Kh1 {[%clk 0:00:45]}  Qxe5 {[%clk 0:01:38]} 16. Ne3 {[%clk 0:00:20]}  Rad8 {[%clk 0:01:33]} 17. Rg1 {[%clk 0:00:17]}  Qf4 {[%clk 0:01:21]} 18. Rg2 {[%clk 0:00:02]}  Nxf3 {[%clk 0:01:17]} 19. Qb1 {[%clk 0:00:01]}  h6 {[%clk 0:00:55]} 20. a3 {[%clk 0:00:01]}  Ba5 {[%clk 0:00:54]} 21. b4 {[%clk 0:00:02]}  cxb4 {[%clk 0:00:48]} 22. Qb2 {[%clk 0:00:02]}  Qd4 {[%clk 0:00:39]} 23. Qxd4 {[%clk 0:00:02]}  Rxd4 {[%clk 0:00:28]} 24. axb4 {[%clk 0:00:03]}  Bxb4 {[%clk 0:00:25]} 25. Be2 {[%clk 0:00:03]}  Ng5 {[%clk 0:00:22]} 26. h4 {[%clk 0:00:02]}  Rxh4+ {[%clk 0:00:19]} 27. Rh2 {[%clk 0:00:02]}  Rxh2+ {[%clk 0:00:19]} 28. Kxh2 {[%clk 0:00:03]}  a5 {[%clk 0:00:20]} 29. Rg1 {[%clk 0:00:03]}  Bd6+ {[%clk 0:00:18]} 30. Kh1 {[%clk 0:00:03]}  Ra8 {[%clk 0:00:17]} 31. Nf5 {[%clk 0:00:03]}  Be5 {[%clk 0:00:15]} 32. Bd3 {[%clk 0:00:01]}  a4 {[%clk 0:00:15]} 33. Rg4 {[%clk 0:00:01]}  a3 {[%clk 0:00:15]} 0-1


[Site "https://www.chess.com"]

[Event "Titled Tuesday Blitz June 6 Early 2023"]
[White "KSho99"]
[Black "Shapiro, Daniel"]
[BlackFideId "2001780"]
[WhiteElo "2206"]
[BlackElo "2383"]
[Result "0-1"]
[Round "5"]
[TimeControl "180+2"]
[Date "2023.06.06"]
[WhiteClock "0:00:06"]
[BlackClock "0:00:37"]
[Board "165"]

1. Nc3 {[%clk 0:03:00]}  c5 {[%clk 0:02:56]} 2. Nf3 {[%clk 0:03:00]}  e6 {[%clk 0:02:54]} 3. d4 {[%clk 0:02:55]}  cxd4 {[%clk 0:02:54]} 4. Nxd4 {[%clk 0:02:52]}  a6 {[%clk 0:02:54]} 5. g3 {[%clk 0:02:52]}  Qc7 {[%clk 0:02:53]} 6. Bg2 {[%clk 0:02:51]}  Nf6 {[%clk 0:02:54]} 7. O-O {[%clk 0:02:44]}  Nc6 {[%clk 0:02:50]} 8. Nb3 {[%clk 0:02:39]}  Rb8 {[%clk 0:02:47]} 9. a4 {[%clk 0:02:39]}  b6 {[%clk 0:02:33]} 10. Bf4 {[%clk 0:02:30]}  d6 {[%clk 0:02:28]} 11. Qd2 {[%clk 0:02:18]}  Bb7 {[%clk 0:02:27]} 12. Rfd1 {[%clk 0:02:17]}  Rd8 {[%clk 0:02:27]} 13. e4 {[%clk 0:01:51]}  h6 {[%clk 0:02:24]} 14. h3 {[%clk 0:01:50]}  Be7 {[%clk 0:02:22]} 15. Be3 {[%clk 0:01:43]}  O-O {[%clk 0:02:04]} 16. a5 {[%clk 0:01:41]}  Nxa5 {[%clk 0:01:54]} 17. Nxa5 {[%clk 0:01:22]}  bxa5 {[%clk 0:01:55]} 18. Na4 {[%clk 0:01:08]}  Nd7 {[%clk 0:01:19]} 19. b3 {[%clk 0:00:47]}  f5 {[%clk 0:01:03]} 20. exf5 {[%clk 0:00:34]}  Rxf5 {[%clk 0:01:01]} 21. Nb2 {[%clk 0:00:27]}  Bxg2 {[%clk 0:00:57]} 22. Kxg2 {[%clk 0:00:27]}  Qc6+ {[%clk 0:00:54]} 23. Kh2 {[%clk 0:00:26]}  Ne5 {[%clk 0:00:54]} 24. Qc1 {[%clk 0:00:05]}  Nf3+ {[%clk 0:00:39]} 25. Kh1 {[%clk 0:00:06]}  Rh5 {[%clk 0:00:37]} 0-1


[Site "https://www.chess.com"]

[Event "Titled Tuesday Blitz June 6 Early 2023"]
[White "Polanco Nunez, Yoel Estarling"]
[Black "Zallio, Luciano de Souza"]
[WhiteFideId "6401783"]
[BlackFideId "2109700"]
[WhiteElo "2132"]
[BlackElo "2057"]
[Result "1-0"]
[Round "5"]
[TimeControl "180+2"]
[Date "2023.06.06"]
[WhiteClock "0:00:11"]
[BlackClock "0:00:41"]
[Board "171"]

1. c4 {[%clk 0:03:00]}  e5 {[%clk 0:02:58]} 2. Nc3 {[%clk 0:03:01]}  d6 {[%clk 0:02:59]} 3. Nf3 {[%clk 0:03:00]}  f5 {[%clk 0:02:59]} 4. d4 {[%clk 0:03:01]}  e4 {[%clk 0:02:56]} 5. Ng5 {[%clk 0:02:57]}  Be7 {[%clk 0:02:53]} 6. Nh3 {[%clk 0:02:55]}  g5 {[%clk 0:02:48]} 7. f3 {[%clk 0:02:53]}  exf3 {[%clk 0:02:41]} 8. exf3 {[%clk 0:02:49]}  Nc6 {[%clk 0:02:32]} 9. Be3 {[%clk 0:02:34]}  f4 {[%clk 0:02:27]} 10. Bf2 {[%clk 0:02:34]}  Bxh3 {[%clk 0:02:21]} 11. gxh3 {[%clk 0:02:35]}  Qd7 {[%clk 0:02:21]} 12. Qd2 {[%clk 0:02:24]}  Nh6 {[%clk 0:02:18]} 13. O-O-O {[%clk 0:02:18]}  a6 {[%clk 0:02:07]} 14. Bd3 {[%clk 0:02:03]}  O-O-O {[%clk 0:02:02]} 15. Kb1 {[%clk 0:01:48]}  Qxh3 {[%clk 0:01:58]} 16. Be4 {[%clk 0:01:46]}  Kb8 {[%clk 0:01:51]} 17. b4 {[%clk 0:01:37]}  Nxb4 {[%clk 0:01:29]} 18. Qb2 {[%clk 0:01:34]}  d5 {[%clk 0:01:29]} 19. Nxd5 {[%clk 0:01:33]}  Nxd5 {[%clk 0:01:26]} 20. Bxd5 {[%clk 0:01:33]}  Qc8 {[%clk 0:01:26]} 21. Rd3 {[%clk 0:01:26]}  Nf5 {[%clk 0:01:23]} 22. Be4 {[%clk 0:01:18]}  Nd6 {[%clk 0:01:19]} 23. c5 {[%clk 0:01:13]}  Nxe4 {[%clk 0:01:19]} 24. fxe4 {[%clk 0:01:07]}  Bxc5 {[%clk 0:01:18]} 25. Rc1 {[%clk 0:01:08]}  Bb6 {[%clk 0:01:15]} 26. Rb3 {[%clk 0:01:05]}  Qe6 {[%clk 0:01:11]} 27. d5 {[%clk 0:01:04]}  Qxe4+ {[%clk 0:01:10]} 28. Ka1 {[%clk 0:00:59]}  Bxf2 {[%clk 0:01:02]} 29. Rxb7+ {[%clk 0:00:59]}  Ka8 {[%clk 0:01:03]} 30. Rb4 {[%clk 0:00:16]}  Qxd5 {[%clk 0:00:52]} 31. Qxf2 {[%clk 0:00:16]}  Qe5+ {[%clk 0:00:47]} 32. Kb1 {[%clk 0:00:13]}  Qe3 {[%clk 0:00:47]} 33. Qc2 {[%clk 0:00:13]}  Qa7 {[%clk 0:00:41]} 34. Qc6+ {[%clk 0:00:11]} 1-0


[Site "https://www.chess.com"]

[Event "Titled Tuesday Blitz June 6 Early 2023"]
[White "Goswami, Vedant"]
[Black "Lakshmi C"]
[WhiteFideId "5003725"]
[BlackFideId "25035347"]
[WhiteElo "2011"]
[BlackElo "1942"]
[Result "0-1"]
[Round "5"]
[TimeControl "180+2"]
[Date "2023.06.06"]
[WhiteClock "0:00:39"]
[BlackClock "0:00:08"]
[Board "173"]

1. b3 {[%clk 0:03:00]}  e5 {[%clk 0:02:48]} 2. Bb2 {[%clk 0:02:59]}  Nc6 {[%clk 0:02:47]} 3. g3 {[%clk 0:02:57]}  d5 {[%clk 0:02:47]} 4. Bg2 {[%clk 0:02:57]}  g6 {[%clk 0:02:46]} 5. d3 {[%clk 0:02:54]}  Bg7 {[%clk 0:02:45]} 6. Nd2 {[%clk 0:02:54]}  Be6 {[%clk 0:02:45]} 7. e3 {[%clk 0:02:53]}  f5 {[%clk 0:02:43]} 8. Ne2 {[%clk 0:02:52]}  Nf6 {[%clk 0:02:41]} 9. a3 {[%clk 0:02:48]}  a5 {[%clk 0:02:38]} 10. c4 {[%clk 0:02:47]}  O-O {[%clk 0:02:23]} 11. Qc2 {[%clk 0:02:38]}  Qd7 {[%clk 0:02:08]} 12. Nf3 {[%clk 0:02:34]}  e4 {[%clk 0:02:00]} 13. Nfd4 {[%clk 0:02:33]}  Ne5 {[%clk 0:01:34]} 14. dxe4 {[%clk 0:02:27]}  fxe4 {[%clk 0:01:29]} 15. Nf4 {[%clk 0:02:26]}  Nd3+ {[%clk 0:01:00]} 16. Nxd3 {[%clk 0:02:24]}  exd3 {[%clk 0:01:00]} 17. Qxd3 {[%clk 0:01:35]}  dxc4 {[%clk 0:00:49]} 18. Qe2 {[%clk 0:01:24]}  cxb3 {[%clk 0:00:35]} 19. Nxe6 {[%clk 0:01:20]}  Qxe6 {[%clk 0:00:31]} 20. O-O {[%clk 0:01:14]}  c6 {[%clk 0:00:18]} 21. e4 {[%clk 0:01:11]}  a4 {[%clk 0:00:16]} 22. Qe3 {[%clk 0:01:04]}  Rad8 {[%clk 0:00:14]} 23. Rfd1 {[%clk 0:01:00]}  Ng4 {[%clk 0:00:13]} 24. Rxd8 {[%clk 0:00:53]}  Nxe3 {[%clk 0:00:12]} 25. Rxf8+ {[%clk 0:00:52]}  Kxf8 {[%clk 0:00:10]} 26. Bxg7+ {[%clk 0:00:50]}  Kxg7 {[%clk 0:00:10]} 27. fxe3 {[%clk 0:00:51]}  Qe5 {[%clk 0:00:10]} 28. Rd1 {[%clk 0:00:49]}  b2 {[%clk 0:00:09]} 29. Bf1 {[%clk 0:00:47]}  Qc5 {[%clk 0:00:09]} 30. Kf2 {[%clk 0:00:46]}  Qc1 {[%clk 0:00:08]} 31. Rd7+ {[%clk 0:00:43]}  Kh6 {[%clk 0:00:08]} 32. Bd3 {[%clk 0:00:42]}  b1=Q {[%clk 0:00:08]} 33. Bxb1 {[%clk 0:00:41]}  Qxb1 {[%clk 0:00:09]} 34. e5 {[%clk 0:00:42]}  Qb2+ {[%clk 0:00:09]} 35. Kf3 {[%clk 0:00:41]}  Qxe5 {[%clk 0:00:09]} 36. e4 {[%clk 0:00:40]}  Qc3+ {[%clk 0:00:09]} 37. Kf4 {[%clk 0:00:39]}  Qc1+ {[%clk 0:00:09]} 38. Kf3 {[%clk 0:00:39]}  Qxa3+ {[%clk 0:00:08]} 0-1


[Site "https://www.chess.com"]